Workbook

Sheet Notes
E1: LIFE EXPECTANCY TEMPLATE TECHNICAL NOTES
B4: Life Expectancy and Life Tables
B5: Life expectancy is one of the key measures of the health status of a population and can be defined as: ‘The average number of years a baby born in a particular area or population can be expected to live if it experiences the current age-specific mortality rates of that particular area or population throughout its life’.
B6: The calculation of life expectancy requires the construction of a current life table – a table of information that breaks down the mortality experience of a population by age. These age-specfic rates are applied to a hypothetical cohort of newborns to calculate their average expected life span, or life expectancy. Life expectancy at other ages can be calculated in a similar way, eg life expectancy at age 65 can be calculated by applying the current age specific mortality rates over the age of 65 to a hypothetical cohort of 65 year olds. The current life table is the most effective way of summarising the mortality experience of a population and can also be used to make statistical inferences and comparison between the mortality experience of different populations.
B7: The life table may be complete ('unabridged') or abridged. In complete life tables the mortality experience is broken down by individual years of life and occasionally even further, particularly for mortality under 1 year of age. In abridged life tables the mortality experience is broken down by larger age intervals, usually of 5 years, though with the general exceptional of the first years of life, ie ages under 1, and 1 to 4 years.
B8: Methodology used In this template
B9: This template is for an abridged life table using 5 year age intervals with a final age interval of 90+. The table has been completed using the methods described by Chiang.1,2 This age structure and methodology is used by The Office for National Statistics to produce life expectancy at national and local authority level.3
B10: This template includes an adjustment to the method for calculating the variance of the life expectancy estimate to include a term for the variance associated with the final age interval. In the Chiang method the variance of the life expectancy is the weighted sum of the variance of the probability of survival across all the age intervals. For the final age interval the probability of survival is, by definition, zero and has zero variance. However, Silcocks et al argue4 that in the case of the final age interval the life expectancy is dependent not on the probability of survival but on the mean length of survival (1/Mω). Therefore the variance associated with the final age interval depends on the age-specific mortality rate Mω.
B11: The template was originally developed with a final age interval of 85+. The availability of mid-year estimates of population for the 85-89 and 90+ age groups enabled the possibility of separating these two age groups in the life table, something that became more important as the numbers of deaths above age 85 increased. Following analysis of the impact of the change, PHE and ONS agreed to change the method to use 90+ as the final age interval. The methodology for estimating the variance associated with the final age interval was modified in this spreadsheet to match the Silcocks method used by ONS. It had previously used a method based on a binomial assumption for the final age band, for consistency with the Chiang method. However, the difference between the two approaches was negligible and for consistency with ONS outputs the PHE calculator was changed in February 2019.
B12: Issues that can arise with small numbers
B13: Life expectancy cannot be calculated if the person-years in any given age interval is zero. It will also not be calculated if the total person-years is less than 5,000 as this is considered to be the minimum size for robust calculation of life expectancy.5 Zero death counts are not a problem, except for the final age interval - there must be at least one death in the 90+ interval for the calculations to be possible.
B14: Further information on methodology
B15: The methodology used in this spreadsheet, along with discussion of alternative options for life expectancy calculation for small areas, were described in full in a paper which accompanied the original version of this tool.6
B16: References:
B17: 1 | C17: Chiang CL. The Life Table and its Construction. In: Introduction to Stochastic Processes in Biostatistics. New York, John Wiley & Sons, 1968:189-214.
B18: 2 | C18: Newell C. Methods and Models in Demography. Chichester, John Wiley & Sons, 1994:63-81
B19: 3 | C19: Office for National Statistics Report. Life expectancy at birth by health and local authorities in the United Kingdom, 1998 to 2000 (3-year aggregate figures.) Health Statistics Quarterly 2002;13:83-90
B20: 4 | C20: Silcocks PBS, Jenner DA, Reza R. Life expectancy as a summary of mortality in a population: statistical considerations and suitability for use by health authorities. J Epidemiol Community Health 2001;55:38-43
B21: 5 | C21: Toson B, Baker A. Life expectancy at birth: methodological options for small populations. National Statistics Methodological Series No 33. HMSO 2003.
B22: 6 | C22: Eayres DP, Williams ES. Evaluation of methodologies for small area life expectancy estimation. J Epidemiol Community Health 2004;58:243-249

Sheet Life Table
E1: LIFE EXPECTANCY TEMPLATE LIFE TABLE
E3: This sheet calculates life expectancy for a single area and shows every stage of the calculations. For multiple areas use the Batch Calculator. | P3: the Batch Calculator.
B4: Technical Notes | E4: Paste the numbers of deaths and the population years at risk for your area into columns H and G respectively.
B6: Abridged Life Table (0, 1 – 4, then 5-year age intervals to 90 +)
B8: Age Interval ID | C8: Age at Start of Interval | D8: Age Interval | E8: Interval Width | F8: Fraction of Last Age Interval Survived | G8: Population Years at Risk | H8: Number of Deaths in Interval | I8: Death Rate in Interval | J8: Probability of Dying in Interval | K8: Number Alive at Start of Interval | L8: Number Dying in Interval | M8: Person-Years Lived in Interval | N8: Person-Years Lived Beyond Start of Interval | O8: Observed Life Expectancy at Start of Interval | P8: Sample Vari-ance of Propor-tion Surviving in Interval | Q8: Weighted Vari-ance of Propor-tion Surviving in Interval | R8: Sample Variance of Person-Years Lived Beyond Start of Interval | S8: Sample Variance of Observed Life Expectancy at Start of Interval | T8: 95% Confidence Interval for Observed Life Expectancy at Start of Interval
B9: i | C9: xi | D9: xi≤x<xi+1 | E9: ni | F9: ai | G9: Pi | H9: Di | I9: Mi | J9: qi | K9: li | L9: di | M9: Li | N9: Ti | O9: êi | P9: Spi2 | Q9: Weighted Spi2 | R9: STi2 | S9: Sêi2 | T9: Lower | U9: Upper
B11: 1 | C11: 0 | D11: 0 | E11: 1 | F11: 0.1 | G11: 50698 | H11: 206 | I11: =MIN(1,H11/G11) -> 0.004063276658 | J11: =IF(H11>G11/E11/F11,1,E11*I11/(1+E11*(1-F11)*I11)) -> 0.004048471604 | K11: 100000 | L11: =K11-K12 -> 404.8471604 | M11: =E11*(K12+F11*L11) -> 99635.63756 | N11: =N12+M11 -> 7832451.068 | O11: =IF(K11=0,0,N11/K11) -> 78.32451068 | P11: =IF(H11=0,0,J11^2*(1-J11)/H11) -> 7.924158923e-08 | Q11: =K11^2*((1-F11)*E11+O12)^2*P11 -> 4888352.129 | R11: =R12+Q11 -> 39590992.39 | S11: =R11/K11^2 -> 0.003959099239 | T11: =O11-1.96*SQRT(S11) -> 78.20118479 | U11: =O11+1.96*SQRT(S11) -> 78.44783657
B12: 2 | C12: 1 | D12: 1 | E12: 4 | F12: 0.5 | G12: 215400 | H12: 37 | I12: 0.0001717734448 | J12: =IF(H12>G12/E12/F12,1,E12*I12/(1+E12*(1-F12)*I12)) -> 0.0006868578112 | K12: =(1-J11)*K11 -> 99595.15284 | L12: =K12-K13 -> 68.40770868 | M12: 398243.7959 | N12: 7732815.43 | O12: =IF(K12=0,0,N12/K12) -> 77.64248771 | P12: 1.274188139e-08 | Q12: 724166.4019 | R12: 34702640.27 | S12: =R12/K12^2 -> 0.003498534117 | T12: =O12-1.96*SQRT(S12) -> 77.52655683 | U12: =O12+1.96*SQRT(S12) -> 77.75841859
B13: 3 | C13: 5 | D13: 5 | E13: 5 | F13: 0.5 | G13: 280458 | H13: 23 | I13: 8.200871432e-05 | J13: 0.000409959521 | K13: 99526.74513 | L13: 40.80193676 | M13: 497531.7208 | N13: 7334571.634 | O13: 73.69447905 | P13: 7.30425688e-09 | Q13: 367032.4252 | R13: 33978473.86 | S13: 0.003430238097 | T13: 73.57968531 | U13: 73.80927279
B14: 4 | C14: 10 | D14: 10 – 14 | E14: 5 | F14: 0.5 | G14: 258105 | H14: 23 | I14: 8.911102071e-05 | J14: 0.000445455866 | K14: 99485.94319 | L14: 44.31659698 | M14: 497318.9245 | N14: 6837039.914 | O14: 68.72367788 | P14: 8.623588535e-09 | Q14: 374649.4223 | R14: 33611441.44 | S14: 0.003395968822 | T14: 68.60945899 | U14: 68.83789676
B15: 5 | C15: 15 | D15: 15 – 19 | E15: 5 | F15: 0.5 | G15: 282062 | H15: 105 | I15: 0.0003722585814 | J15: 0.001859562312 | K15: 99441.6266 | L15: 184.9179011 | M15: 496745.8382 | N15: 6339720.989 | O15: 63.75319075 | P15: 3.287182551e-08 | Q15: 1224149.316 | R15: 33236792.02 | S15: 0.003361109492 | T15: 63.6395596 | U15: 63.8668219
B16: 6 | C16: 20 | D16: 20 – 24 | E16: 5 | F16: 0.5 | G16: 329060 | H16: 162 | I16: 0.0004923114326 | J16: 0.002458531255 | K16: 99256.7087 | L16: 244.0257206 | M16: 495673.4792 | N16: 5842975.151 | O16: 58.86730708 | P16: 3.721923238e-08 | Q16: 1170792.169 | R16: 32012642.7 | S16: 0.003249389608 | T16: 58.75558038 | U16: 58.97903378
B17: 7 | C17: 25 | D17: 25 – 29 | E17: 5 | F17: 0.5 | G17: 306097 | H17: 268 | I17: 0.0008755394532 | J17: 0.004368136077 | K17: 99012.68298 | L17: 432.5008726 | M17: 493982.1627 | N17: 5347301.672 | O17: 54.00622941 | P17: 7.088532118e-08 | Q17: 1859772.881 | R17: 30841850.53 | S17: 0.003146000377 | T17: 53.89629455 | U17: 54.11616428
B18: 8 | C18: 30 | D18: 30 – 34 | E18: 5 | F18: 0.5 | G18: 274544 | H18: 314 | I18: 0.001143714669 | J18: 0.005702268922 | K18: 98580.1821 | L18: 562.1307087 | M18: 491495.5837 | N18: 4853319.509 | O18: 49.23220272 | P18: 1.029632376e-07 | Q18: 2210349.906 | R18: 28982077.65 | S18: 0.002982292824 | T18: 49.12516638 | U18: 49.33923905
B19: 9 | C19: 35 | D19: 35 – 39 | E19: 5 | F19: 0.5 | G19: 260415 | H19: 413 | I19: 0.00158593015 | J19: 0.00789833523 | K19: 98018.05139 | L19: 774.1794285 | M19: 488154.8084 | N19: 4361823.925 | O19: 44.50021056 | P19: 1.498570751e-07 | Q19: 2580357.97 | R19: 26771727.74 | S19: 0.002786533515 | T19: 44.39674681 | U19: 44.6036743
B20: 10 | C20: 40 | D20: 40 – 44 | E20: 5 | F20: 0.5 | G20: 267450 | H20: 584 | I20: 0.002183585717 | J20: 0.01085865159 | K20: 97243.87197 | L20: 1055.937325 | M20: 483579.5165 | N20: 3873669.117 | O20: 39.83458329 | P20: 1.997088483e-07 | Q20: 2690467.163 | R20: 24191369.77 | S20: 0.002558208715 | T20: 39.73544896 | U20: 39.93371761
B21: 11 | C21: 45 | D21: 45 – 49 | E21: 5 | F21: 0.5 | G21: 311314 | H21: 954 | I21: 0.003064430125 | J21: 0.01520565893 | K21: 96187.93464 | L21: 1462.600927 | M21: 477283.1709 | N21: 3390089.6 | O21: 35.24443698 | P21: 2.386754001e-07 | Q21: 2441365.62 | R21: 21500902.61 | S21: 0.002323889603 | T21: 35.14995177 | U21: 35.33892218
B22: 12 | C22: 50 | D22: 50 – 54 | E22: 5 | F22: 0.5 | G22: 324311 | H22: 1359 | I22: 0.004190422157 | J22: 0.02073489092 | K22: 94725.33371 | L22: 1964.119462 | M22: 468716.3699 | N22: 2912806.429 | O22: 30.75002552 | P22: 3.098020835e-07 | Q22: 2313416.076 | R22: 19059536.99 | S22: 0.002124124941 | T22: 30.65969259 | U22: 30.84035845
B23: 13 | C23: 55 | D23: 55 – 59 | E23: 5 | F23: 0.5 | G23: 296825 | H23: 1912 | I23: 0.006441505938 | J23: 0.03169708725 | K23: 92761.21425 | L23: 2940.260302 | M23: 456455.4205 | N23: 2444090.06 | O23: 26.34818959 | P23: 5.088175247e-07 | Q23: 2655726 | R23: 16746120.92 | S23: 0.001946172685 | T23: 26.26172331 | U23: 26.43465586
B24: 14 | C24: 60 | D24: 60 – 64 | E24: 5 | F24: 0.5 | G24: 271339 | H24: 2824 | I24: 0.01040764505 | J24: 0.05071857298 | K24: 89820.95395 | L24: 4555.590608 | M24: 437715.7932 | N24: 1987634.639 | O24: 22.12885247 | P24: 8.64697778e-07 | Q24: 2982768.332 | R24: 14090394.92 | S24: 0.00174649698 | T24: 22.0469419 | U24: 22.21076305
B25: 15 | C25: 65 | D25: 65 – 69 | E25: 5 | F25: 0.5 | G25: 284608 | H25: 4507 | I25: 0.01583581628 | J25: 0.07616379187 | K25: 85265.36334 | L25: 6494.133387 | M25: 410091.4832 | N25: 1549918.846 | O25: 18.17759035 | P25: 1.1890621e-06 | Q25: 2489536.489 | R25: 11107626.58 | S25: 0.00152783332 | T25: 18.10097883 | U25: 18.25420187
B26: 16 | C26: 70 | D26: 70 – 74 | E26: 5 | F26: 0.5 | G26: 228062 | H26: 5851 | I26: 0.02565530426 | J26: 0.1205449762 | K26: 78771.22995 | L26: 9495.47604 | M26: 370117.4597 | N26: 1139827.363 | O26: 14.47009731 | P26: 2.18414651e-06 | Q26: 2510643.875 | R26: 8618090.094 | S26: 0.001388915346 | T26: 14.39705173 | U26: 14.54314289
B27: 17 | C27: 75 | D27: 75 – 79 | E27: 5 | F27: 0.5 | G27: 162785 | H27: 7117 | I27: 0.04372024449 | J27: 0.1970622032 | K27: 69275.75392 | L27: 13651.6327 | M27: 312249.6878 | N27: 769709.9029 | O27: 11.11081236 | P27: 4.381185122e-06 | Q27: 2418124.031 | R27: 6107446.219 | S27: 0.001272615269 | T27: 11.04089184 | U27: 11.18073288
B28: 18 | C28: 80 | D28: 80 – 84 | E28: 5 | F28: 0.5 | G28: 111263 | H28: 8192 | I28: 0.07362735141 | J28: 0.3109083595 | K28: 55624.12122 | L28: 17294.00427 | M28: 234885.5954 | N28: 457460.215 | O28: 8.224133793 | P28: 8.131147441e-06 | Q28: 1735976.138 | R28: 3689322.189 | S28: 0.001192395307 | T28: 8.156452881 | U28: 8.291814705
B29: 19 | C29: 85 | D29: 85 – 89 | E29: 5 | F29: 0.5 | G29: 58987 | H29: 7745 | I29: 0.131300117 | J29: 0.4942596953 | K29: 38330.11695 | L29: 18945.03192 | M29: 144288.0049 | N29: 222574.6196 | O29: 5.806781647 | P29: 1.595205132e-05 | Q29: 1001965.417 | R29: 1953346.051 | S29: 0.001329532323 | T29: 5.735314652 | U29: 5.878248642
B30: 20 | C30: 90 | D30: 90 + | E30: =1/F30/I30 -> 8.076994722 | F30: 0.5 | G30: 26016 | H30: 6442 | I30: =MIN(1,H30/G30) -> 0.2476168512 | J30: 1 | K30: 19385.08502 | L30: =K30 -> 19385.08502 | M30: =K30/I30 -> 78286.6147 | N30: =M30 -> 78286.6147 | O30: 4.038497361 | P30: =4/H30/I30^2 -> 0.01012695494 | Q30: =(K30/2)^2*P30 -> 951380.6336 | R30: =Q30 -> 951380.6336 | S30: 0.002531738736 | T30: 3.939877244 | U30: 4.137117478

Sheet Batch Calculator
D1: LIFE EXPECTANCY TEMPLATE BATCH CALCULATOR
F3: This sheet automates the calculations set out in the | L3: Life Table sheet, | N3: allowing multiple areas to be calculated at once.
B4: Technical Notes | F4: Copy row 10 and paste it below as many times as required.
F5: Paste the area identifiers, numbers of deaths and the population years at risk for your areas into columns B to AQ.
B6: Calculate Life Expectancy at age: | D6: 0 | F6: Life expectancy at age specified in cell D6 is calculated by the function in cells AR to AT.
F7: If additional metadata fields are required to identify rows, eg for males and females, insert columns between columns B & C.
B8: Area code | C8: Area name | D8: Deaths | X8: Population | AR8: Life Expectancy | AS8: 95% CI
D9: 0 | E9: 1 – 4 | F9: 5 – 9 | G9: 10 – 14 | H9: 15 – 19 | I9: 20 – 24 | J9: 25 – 29 | K9: 30 – 34 | L9: 35 – 39 | M9: 40 – 44 | N9: 45 – 49 | O9: 50 – 54 | P9: 55 – 59 | Q9: 60 – 64 | R9: 65 – 69 | S9: 70 – 74 | T9: 75 – 79 | U9: 80 – 84 | V9: 85 – 89 | W9: 90 + | X9: 0 | Y9: 1 – 4 | Z9: 5 – 9 | AA9: 10 – 14 | AB9: 15 – 19 | AC9: 20 – 24 | AD9: 25 – 29 | AE9: 30 – 34 | AF9: 35 – 39 | AG9: 40 – 44 | AH9: 45 – 49 | AI9: 50 – 54 | AJ9: 55 – 59 | AK9: 60 – 64 | AL9: 65 – 69 | AM9: 70 – 74 | AN9: 75 – 79 | AO9: 80 – 84 | AP9: 85 – 89 | AQ9: 90 +
B10: Eg1 | C10: Example Area | D10: 206 | E10: 37 | F10: 23 | G10: 23 | H10: 105 | I10: 162 | J10: 268 | K10: 314 | L10: 413 | M10: 584 | N10: 954 | O10: 1359 | P10: 1912 | Q10: 2824 | R10: 4507 | S10: 5851 | T10: 7117 | U10: 8192 | V10: 7745 | W10: 6442 | X10: 50698 | Y10: 215400 | Z10: 280458 | AA10: 258105 | AB10: 282062 | AC10: 329060 | AD10: 306097 | AE10: 274544 | AF10: 260415 | AG10: 267450 | AH10: 311314 | AI10: 324311 | AJ10: 296825 | AK10: 271339 | AL10: 284608 | AM10: 228062 | AN10: 162785 | AO10: 111263 | AP10: 58987 | AQ10: 26016 | AR10: =le(D10:W10,X10:AQ10,$D$6) -> 78.32451068 | AS10: 78.20118479 | AT10: 78.44783657
